fUSD/lending_fUSD_20260523
["ID","MTS","AMOUNT","RATE_DAILY","PERIOD"]
[422822392,1779472237000,-182.16087365,0.000147,2]
[422822385,1779472237000,-2257.06281363,0.00012402,2]
[422822386,1779472237000,-657.05156622,0.00012402,2]
[422822391,1779472237000,-300.88903238,0.00014252,2]
[422822395,1779472239000,-1132.64973647,0.00012901,2]
[422822439,1779472245000,-523.32320834,0.00012402,2]
[422822440,1779472245000,-57691.3830402,0.00012402,2]
[422822443,1779472246000,-3676.3219,0.00012402,2]
[422822441,1779472246000,-8094.99423611,0.00012402,2]
[422822445,1779472252000,150.0,8.539e-05,2]
[422822446,1779472270000,-534.29145871,0.00010699,2]
[422822447,1779472297000,216.66110706,0.00013,7]
[422822448,1779472323000,-250.0,0.00010808,2]
[422822449,1779472360000,223.22659515,0.00013,7]
[422822450,1779472376000,-150.0,9.632e-05,2]
[422822452,1779472397000,154.54456086,0.00013637,120]
[422822455,1779472411000,152.0,0.00010324,7]
[422822456,1779472736000,-150.0,9.127e-05,2]
[422822457,1779472789000,-150.0,8.853e-05,2]
[422822458,1779472798000,150.0,8.587e-05,2]
[422822462,1779472818000,152.0,0.0001033,7]
[422822473,1779472843000,335.8,6.964e-05,2]
[422822467,1779472843000,335.8,5.293e-05,2]
[422822468,1779472843000,335.8,5.571e-05,2]
[422822469,1779472843000,335.8,5.85e-05,2]
[422822466,1779472843000,-863.401917,9.261e-05,2]
[422822471,1779472843000,335.8,6.407e-05,2]
[422822472,1779472843000,335.8,6.686e-05,2]
[422822470,1779472843000,335.8,6.129e-05,2]
[422822474,1779472843000,335.8,7.243e-05,2]
[422822479,1779472844000,335.8,8.636e-05,2]
[422822477,1779472844000,335.8,8.079e-05,2]
[422822478,1779472844000,335.8,8.357e-05,2]
[422822475,1779472844000,335.8,7.521e-05,2]
[422822476,1779472844000,335.8,7.8e-05,2]
[422822480,1779472896000,-335.8,8.914e-05,2]
[422822481,1779472950000,-150.0,8.647e-05,2]
[422822482,1779472987000,150.0,8.387e-05,2]
[422822484,1779473003000,-150.0,9.008e-05,2]
[422822488,1779473056000,-335.8,9.193e-05,2]
[422822489,1779473110000,-218.06163,9.332e-05,2]
[422822490,1779473163000,-335.8,9.471e-05,2]
[422822491,1779473216000,-829.4331119,9.472e-05,2]
[422822492,1779473221000,216.66110706,0.00013,7]
[422822554,1779473432000,-5228.01,0.00010068,2]
[422822558,1779473432000,-246.35631994,0.0001021,2]
[422822557,1779473432000,-8865.0,0.00010199,2]
[422822555,1779473432000,-19134.0,0.00010178,2]
[422822556,1779473432000,-12770.0,0.00010194,2]
[422822552,1779473432000,-300.0,0.00010067,2]
[422822562,1779473432000,-166.8,0.00010259,2]
[422822564,1779473432000,-1016.85,0.00010278,2]
[422822565,1779473432000,-2480.5,0.00010296,2]
[422822566,1779473432000,-12305.0,0.00010298,2]
[422822553,1779473432000,-895.0,0.00010067,2]
[422822550,1779473432000,-2000.0,0.00010033,2]
[422822560,1779473432000,-1087.0,0.00010253,2]
[422822561,1779473432000,-13438.0,0.00010257,2]
[422822567,1779473432000,-150.0,0.00010307,2]
[422822551,1779473432000,-1200.0,0.00010066,2]
[422822545,1779473432000,-163.46,0.0001,2]
[422822546,1779473432000,-173.23022377,0.0001,2]
[422822547,1779473432000,-154.12,0.00010006,2]
[422822549,1779473432000,-335.8,0.00010029,2]
[422822541,1779473432000,-335.8,9.75e-05,2]
[422822542,1779473432000,-208.7374384,9.777e-05,2]
[422822543,1779473432000,-246.35631996,9.806e-05,2]
[422822544,1779473432000,-246.35631994,9.958e-05,2]
[422822540,1779473432000,-920.709481,9.701e-05,2]
[422822559,1779473432000,-4331.37,0.00010225,2]
[422822568,1779473432000,-335.8,0.00010307,2]
[422822548,1779473432000,-1016.85,0.00010027,2]
[422822570,1779473432000,-6938.0,0.00010426,2]
[422822572,1779473432000,-4212.0,0.00010447,2]
[422822595,1779473432000,-150.0,0.00011244,2]
[422822588,1779473432000,-500.0,0.000112,2]
[422822593,1779473432000,-150.0,0.00011244,2]
[422822592,1779473432000,-150.0,0.00011244,2]
[422822589,1779473432000,-500.0,0.000112,2]
[422822591,1779473432000,-261.39,0.00011215,2]
[422822590,1779473432000,-635.68695821,0.000112,2]
[422822587,1779473432000,-500.0,0.000112,2]
[422822582,1779473432000,-150.0,0.00010984,2]
[422822581,1779473432000,-200.0,0.00010928,2]
[422822584,1779473432000,-1680.0,0.00011073,2]
[422822578,1779473432000,-1016.85,0.00010779,2]
[422822594,1779473432000,-251.37092639,0.00011244,2]
[422822583,1779473432000,-1016.85,0.0001103,2]
[422822580,1779473432000,-36145.2528,0.00010852,2]
[422822563,1779473432000,-1166.0,0.00010278,2]
[422822573,1779473432000,-2489.0,0.00010467,2]
[422822575,1779473432000,-335.8,0.00010586,2]
[422822574,1779473432000,-1016.85,0.00010529,2]
[422822571,1779473432000,-280.31,0.00010436,2]
[422822577,1779473432000,-250.0,0.00010671,2]
[422822576,1779473432000,-250.0,0.00010671,2]
[422822586,1779473432000,-500.0,0.000112,2]
[422822579,1779473432000,-2560.3985,0.00010852,2]
[422822585,1779473432000,-281.09,0.00011183,2]
[422822569,1779473432000,-19390.0,0.00010319,2]
[422822616,1779473433000,-150.0,0.00011494,2]
[422822633,1779473433000,-500.0,0.00011835,2]
[422822617,1779473433000,-150.0,0.00011526,2]
[422822624,1779473433000,-161.24584032,0.00011678,2]
[422822623,1779473433000,-150.0,0.00011647,2]
[422822625,1779473433000,-150.0,0.00011687,2]
[422822627,1779473433000,-150.0,0.00011744,2]
[422822629,1779473433000,-150.0,0.00011744,2]
[422822632,1779473433000,-150.0,0.00011808,2]
[422822634,1779473433000,-150.0,0.00011848,2]
[422822631,1779473433000,-150.0,0.00011779,2]
[422822628,1779473433000,-150.0,0.00011744,2]
[422822630,1779473433000,-150.0,0.00011768,2]
[422822635,1779473433000,-150.0,0.00011868,2]
[422822636,1779473433000,-150.0,0.00011889,2]
[422822637,1779473433000,-150.0,0.00011929,2]
[422822638,1779473433000,-150.0,0.00011958,2]
[422822640,1779473433000,-150.0,0.00011993,2]
[422822615,1779473433000,-150.0,0.00011494,2]
[422822626,1779473433000,-150.0,0.00011727,2]
[422822620,1779473433000,-150.0,0.00011566,2]
[422822609,1779473433000,-150.0,0.00011365,2]
[422822621,1779473433000,-150.0,0.00011601,2]
[422822599,1779473433000,-150.0,0.00011244,2]
[422822597,1779473433000,-150.0,0.00011244,2]
[422822598,1779473433000,-150.0,0.00011244,2]
[422822596,1779473433000,-150.0,0.00011244,2]
[422822600,1779473433000,-150.0,0.00011244,2]
[422822602,1779473433000,-150.0,0.00011244,2]
[422822603,1779473433000,-150.0,0.00011244,2]
[422822604,1779473433000,-150.0,0.00011284,2]
[422822601,1779473433000,-150.0,0.00011244,2]
[422822622,1779473433000,-150.0,0.00011607,2]
[422822639,1779473433000,-150.0,0.00011969,2]
[422822606,1779473433000,-255.0,0.00011317,2]
[422822605,1779473433000,-2000.0,0.00011287,2]
[422822608,1779473433000,-393.12,0.00011348,2]
[422822611,1779473433000,-150.0,0.00011422,2]
[422822612,1779473433000,-150.0,0.00011445,2]
[422822614,1779473433000,-150.0,0.00011494,2]
[422822619,1779473433000,-500.0,0.00011561,2]
[422822613,1779473433000,-150.0,0.00011486,2]
[422822618,1779473433000,-150.0,0.00011556,2]
[422822610,1779473433000,-150.0,0.00011405,2]
[422822642,1779473433000,-150.0,0.00011993,2]
[422822607,1779473433000,-150.0,0.00011324,2]
[422822643,1779473433000,-150.0,0.0001201,2]
[422822669,1779473433000,-154.47727069,0.00012202,2]
[422822670,1779473433000,-168.73235429,0.00012202,2]
[422822672,1779473433000,-173.08176461,0.00012202,2]
[422822674,1779473433000,-150.0,0.00012243,2]
[422822675,1779473433000,-150.0,0.00012243,2]
[422822671,1779473433000,-7922.74662261,0.00012202,2]
[422822679,1779473433000,-477.23376328,0.00012292,2]
[422822673,1779473433000,-150.0,0.00012211,2]
[422822676,1779473433000,-150.0,0.00012243,2]
[422822668,1779473433000,-150.0,0.00012181,2]
[422822677,1779473433000,-150.0,0.00012251,2]
[422822681,1779473433000,-638540.88019317,0.00012302,2]
[422822680,1779473433000,-150.0,0.00012292,2]
[422822683,1779473433000,-19169.02139476,0.00012302,2]
[422822682,1779473433000,-188684.4846899,0.00012302,2]
[422822685,1779473433000,-33299.09217338,0.00012302,2]
[422822684,1779473433000,-135394.71804879,0.00012302,2]
[422822686,1779473433000,-112379.19118763,0.00012302,2]
[422822687,1779473433000,-1254.41808677,0.00012302,2]
[422822644,1779473433000,-500.0,0.00012028,2]
[422822678,1779473433000,-710.08801027,0.00012277,2]
[422822666,1779473433000,-150.0,0.00012171,2]
[422822667,1779473433000,-2351.0,0.0001218,2]
[422822648,1779473433000,-524.02563693,0.00012028,2]
[422822645,1779473433000,-500.0,0.00012028,2]
[422822656,1779473433000,-537.31096175,0.00012028,2]
[422822646,1779473433000,-500.0,0.00012028,2]
[422822647,1779473433000,-500.0,0.00012028,2]
[422822652,1779473433000,-500.0,0.00012028,2]
[422822650,1779473433000,-500.0,0.00012028,2]
[422822649,1779473433000,-150.0,0.00012028,2]
[422822653,1779473433000,-154.42738782,0.00012028,2]
[422822660,1779473433000,-210.96548,0.00012056,2]
[422822641,1779473433000,-150.0,0.00011993,2]
[422822651,1779473433000,-150.0,0.00012028,2]
[422822655,1779473433000,-500.0,0.00012028,2]
[422822657,1779473433000,-150.0,0.0001205,2]
[422822662,1779473433000,-12960.7370803,0.00012102,2]
[422822664,1779473433000,-150.0,0.0001213,2]
[422822663,1779473433000,-500.0,0.00012109,2]
[422822665,1779473433000,-150.0,0.00012136,2]
[422822659,1779473433000,-163.65807,0.00012056,2]
[422822661,1779473433000,-150.0,0.0001209,2]
[422822658,1779473433000,-257.578019,0.00012056,2]
[422822654,1779473433000,-500.0,0.00012028,2]
[422822694,1779473437000,-212.98410792,0.00012202,2]
[422822696,1779473437000,-615.16976096,0.00012302,2]
[422822695,1779473437000,-2193.7385478,0.00012302,2]
[422822698,1779473437000,-397.92394042,0.00012302,2]
[422822703,1779473437000,-2136.06160953,0.00012302,2]
[422822700,1779473437000,-269.74428522,0.00012302,2]
[422822702,1779473437000,-2659.76179686,0.00012302,2]
[422822697,1779473437000,-1730.18738986,0.00012302,2]
[422822699,1779473437000,-1153.8392711,0.00012302,2]
[422822701,1779473437000,-80356.84466422,0.00012302,2]
[422822705,1779473438000,-329.72259467,0.00012302,2]
[422822704,1779473438000,-767.37,0.00012302,2]
[422822718,1779473440000,-500.0,0.00012022,2]
[422822719,1779473440000,-4801.97313031,0.00012302,2]
[422822716,1779473440000,-259.37773929,0.00011748,2]
[422822715,1779473440000,-240.62226071,0.00011748,2]
[422822714,1779473440000,-500.0,0.00011474,2]
[422822713,1779473440000,-500.0,0.000112,2]
[422822717,1779473440000,-606.377393,0.00011958,2]
[422822733,1779473443000,-500.0,0.00012296,2]
[422822736,1779473443000,-26136.23969384,0.00012302,2]
[422822735,1779473443000,-3072.83420803,0.00012302,2]
[422822734,1779473443000,-10036.95120001,0.00012302,2]
[422822741,1779473445000,-485.63075491,0.00010851,2]
[422822740,1779473445000,-500.0,0.00010851,2]
[422822742,1779473445000,-180.88424509,0.00010851,2]
[422822745,1779473446000,-8899.72921612,0.00012302,2]
[422822743,1779473446000,-319.11575491,0.00010851,2]
[422822744,1779473446000,-12256.03424509,0.00012302,2]
[422822761,1779473639000,360.60397534,0.00013637,120]
[422822762,1779473960000,4814.57934946,8e-05,2]
[422822772,1779474381000,150.0,8.506e-05,2]
[422822783,1779474395000,-150.0,8.769e-05,2]
[422822784,1779474395000,-29.79442858,8.769e-05,2]
[422822782,1779474395000,-151.81,8.651e-05,2]
[422822786,1779474442000,150.0,8.506e-05,2]
[422822790,1779474475000,-150.0,9.129e-05,2]
[422822791,1779474475000,-218.06163,9.312e-05,2]
[422822788,1779474475000,-799.63868332,8.769e-05,2]
[422822789,1779474475000,-218.06163,9.04e-05,2]
[422822792,1779474475000,-344.42544654,9.601e-05,2]
[422822795,1779474631000,-150.0,8.762e-05,2]
[422822796,1779474631000,-150.0,9.033e-05,2]
[422822797,1779474631000,-250.0,9.173e-05,2]
[422822801,1779474631000,-369.11114611,0.0001,2]
[422822798,1779474631000,-150.0,9.313e-05,2]
[422822799,1779474631000,-155.57455346,9.601e-05,2]
[422822802,1779474631000,-593.4,0.00010642,2]
[422822805,1779474631000,-319.32572032,0.0001077,2]
[422822803,1779474631000,-154.12,0.00010716,2]
[422822804,1779474631000,-94.80332401,0.0001077,2]
[422822800,1779474631000,-250.0,9.937e-05,2]
[422822837,1779474632000,-208.7374384,0.0001175,2]
[422822840,1779474632000,-150.0,0.00011799,2]
[422822843,1779474632000,-21900.0,0.000119,4]
[422822842,1779474632000,-16400.0,0.000118,4]
[422822846,1779474632000,-13819.25,0.00012082,2]
[422822849,1779474632000,-500.0,0.00012101,2]
[422822844,1779474632000,-150.0,0.00011947,2]
[422822847,1779474632000,-151.0,0.00012099,2]
[422822853,1779474632000,-500.0,0.00012101,2]
[422822851,1779474632000,-500.0,0.00012101,2]
[422822845,1779474632000,-12211.50319339,0.00012002,2]
[422822833,1779474632000,-221.257,0.000117,2]
[422822855,1779474632000,-500.0,0.00012101,2]
[422822857,1779474632000,-500.0,0.00012101,2]
[422822867,1779474632000,-500.0,0.00012101,2]
[422822875,1779474632000,-500.0,0.00012101,2]
[422822865,1779474632000,-500.0,0.00012101,2]
[422822873,1779474632000,-500.0,0.00012101,2]
[422822848,1779474632000,-2000.0,0.00012101,2]
[422822829,1779474632000,-485.47662152,0.00011607,2]
[422822821,1779474632000,-300.0,0.00011598,2]
[422822831,1779474632000,-3325.5,0.000117,2]
[422822806,1779474632000,-276.5582664,0.0001077,2]
[422822807,1779474632000,-1309.31268927,0.0001077,2]
[422822810,1779474632000,-395.58,0.00010848,2]
[422822809,1779474632000,-863.401917,0.00010839,2]
[422822811,1779474632000,-2725.27,0.0001085,2]
[422822808,1779474632000,-200.0,0.00010814,2]
[422822812,1779474632000,-160.0,0.00011006,2]
[422822814,1779474632000,-1200.0,0.00011382,2]
[422822815,1779474632000,-170.51484484,0.00011383,2]
[422822835,1779474632000,-10900.0,0.000117,4]
[422822813,1779474632000,-319.32,0.00011143,2]
[422822817,1779474632000,-354.68854093,0.00011472,2]
[422822818,1779474632000,-300.0,0.00011598,2]
[422822819,1779474632000,-300.0,0.00011598,2]
[422822820,1779474632000,-300.0,0.00011598,2]
[422822823,1779474632000,-5400.0,0.000116,4]
[422822825,1779474632000,-910.78222874,0.00011607,2]
[422822822,1779474632000,-300.0,0.00011598,2]
[422822827,1779474632000,-1872.07836152,0.00011607,2]
[422822859,1779474632000,-500.0,0.00012101,2]
[422822816,1779474632000,-559.2,0.00011453,2]
[422822861,1779474632000,-500.0,0.00012101,2]
[422822869,1779474632000,-411.30316777,0.00012101,2]
[422822879,1779474632000,-500.0,0.00012101,2]
[422822914,1779474632000,-500.0,0.00012201,2]
[422822922,1779474632000,-500.0,0.00012201,2]
[422822924,1779474632000,-500.0,0.00012201,2]
[422822926,1779474632000,-515.76658245,0.00012201,2]
[422822928,1779474632000,-500.0,0.00012201,2]
[422822930,1779474632000,-500.0,0.00012201,2]
[422822932,1779474632000,-500.0,0.00012201,2]
[422822934,1779474632000,-500.0,0.00012201,2]
[422822945,1779474632000,-417.13114333,0.00012201,2]
[422822944,1779474632000,-300.0,0.00012201,2]
[422822947,1779474632000,-144127.3627552,0.00012202,2]
[422822946,1779474632000,-300.0,0.00012201,2]
[422822948,1779474632000,-15775.93389064,0.00012202,2]
[422822936,1779474632000,-500.0,0.00012201,2]
[422822949,1779474632000,-71148.94635302,0.00012202,2]
[422822940,1779474632000,-509.80937555,0.00012201,2]
[422822942,1779474632000,-438.61924276,0.00012201,2]
[422822938,1779474632000,-610.43904045,0.00012201,2]
[422822950,1779474632000,-159697.5500077,0.00012202,2]
[422822918,1779474632000,-500.0,0.00012201,2]
[422822863,1779474632000,-500.0,0.00012101,2]
[422822920,1779474632000,-391.20441638,0.00012201,2]
[422822908,1779474632000,-500.0,0.000122,2]
[422822871,1779474632000,-500.0,0.00012101,2]
[422822877,1779474632000,-500.0,0.00012101,2]
[422822880,1779474632000,-500.0,0.00012101,2]
[422822882,1779474632000,-500.0,0.00012101,2]
[422822886,1779474632000,-500.0,0.00012101,2]
[422822884,1779474632000,-500.0,0.00012101,2]
[422822894,1779474632000,-8414.58953765,0.00012102,2]
[422822888,1779474632000,-664.7106,0.00012102,2]
[422822890,1779474632000,-99161.3149,0.00012102,2]
[422822892,1779474632000,-204.99204309,0.00012102,2]
[422822898,1779474632000,-205.25,0.00012102,2]
[422822901,1779474632000,-205.25,0.00012104,2]
[422822896,1779474632000,-186.36109443,0.00012102,2]
[422822900,1779474632000,-165.04614196,0.00012104,2]
[422822903,1779474632000,-2000.0,0.00012117,2]
[422822905,1779474632000,-410.09450715,0.00012192,2]
[422822907,1779474632000,-151.0,0.00012199,2]
[422822910,1779474632000,-1000.0,0.00012201,2]
[422822912,1779474632000,-500.0,0.00012201,2]
[422822916,1779474632000,-500.0,0.00012201,2]
[422822951,1779474638000,277.86,6.196e-05,2]
[422822952,1779474638000,277.86,6.522e-05,2]
[422822953,1779474638000,277.86,6.848e-05,2]
[422822962,1779474639000,277.86,8.479e-05,2]
[422822957,1779474639000,277.86,8.153e-05,2]
[422822956,1779474639000,277.86,7.827e-05,2]
[422822955,1779474639000,277.86,7.501e-05,2]
[422822954,1779474639000,277.86,7.175e-05,2]
[422822964,1779474641000,-277.86,8.805e-05,2]
[422822965,1779474641000,-277.86,9.131e-05,2]
[422822966,1779474641000,-220.46,9.457e-05,2]
[422822967,1779474641000,-57.4,9.457e-05,2]
[422822972,1779474641000,-738.53440322,0.00012202,2]
[422822968,1779474641000,-277.86,9.783e-05,2]
[422822969,1779474641000,-277.86,0.0001011,2]
[422822971,1779474641000,-273.3963381,0.00012192,2]
[422822970,1779474641000,-500.0,0.00012101,2]
[422823203,1779474643000,-277.86,0.00010762,2]
[422823205,1779474643000,-191.78620101,0.00011088,2]
[422823201,1779474643000,-277.86,0.00010436,2]
[422823303,1779474646000,-2774.03999143,0.00012202,2]
[422823300,1779474646000,-277.86,0.00011414,2]
[422823299,1779474646000,-86.07379899,0.00011088,2]
[422823301,1779474646000,-277.86,0.0001174,2]
[422823305,1779474646000,-429.06987641,0.00012202,2]
[422823304,1779474646000,-505.0,0.00012202,2]
[422823306,1779474646000,-2470.5461,0.00012202,2]
[422823307,1779474646000,-43739.58327787,0.00012202,2]
[422823302,1779474646000,-277.86,0.00012066,2]
[422823318,1779474667000,3793.204041,7.945e-05,2]
[422823323,1779474815000,293.29603643,0.00013,7]
[422823324,1779475156000,159.84,8.128e-05,2]
[422823325,1779475208000,3945.294884,7.945e-05,2]
[422823332,1779475438000,-184.0,9.304e-05,2]
[422823331,1779475438000,-206.20401749,9.258e-05,2]
[422823330,1779475438000,-1060.20410004,9.251e-05,2]
[422823327,1779475438000,-250.0,9.075e-05,2]
[422823329,1779475438000,-500.0,9.213e-05,2]
[422823326,1779475438000,-150.0,8.936e-05,2]
[422823334,1779475438000,-184.0,9.488e-05,2]
[422823328,1779475438000,-2062.24822766,9.075e-05,2]
[422823335,1779475438000,-184.0,9.58e-05,2]
[422823333,1779475438000,-184.0,9.396e-05,2]
[422823339,1779475438000,-184.0,9.765e-05,2]
[422823345,1779475438000,-2252.86,9.841e-05,2]
[422823344,1779475438000,-279.61,9.84e-05,2]
[422823343,1779475438000,-250.0,9.83e-05,2]
[422823340,1779475438000,-1298.25,9.815e-05,2]
[422823337,1779475438000,-208.7374384,9.682e-05,2]
[422823342,1779475438000,-300.0,9.83e-05,2]
[422823346,1779475438000,-184.0,9.857e-05,2]
[422823336,1779475438000,-184.0,9.672e-05,2]
[422823338,1779475438000,-160.0,9.682e-05,2]
[422823341,1779475438000,-250.0,9.83e-05,2]
[422823347,1779475439000,-5357.013894,9.899e-05,2]
[422823348,1779475440000,1126.87232241,9.705e-05,2]
[422823349,1779475540000,150.0,8.571e-05,2]
[422823367,1779475740000,338.1,5.71e-05,2]
[422823365,1779475740000,338.1,5.191e-05,2]
[422823364,1779475740000,338.1,4.932e-05,2]
[422823366,1779475740000,338.1,5.451e-05,2]
[422823372,1779475741000,338.1,7.008e-05,2]
[422823371,1779475741000,338.1,6.749e-05,2]
[422823370,1779475741000,338.1,6.489e-05,2]
[422823369,1779475741000,338.1,6.23e-05,2]
[422823368,1779475741000,338.1,5.97e-05,2]
[422823373,1779475742000,338.1,7.268e-05,2]
[422823374,1779475742000,338.1,7.527e-05,2]
[422823376,1779475742000,338.1,8.046e-05,2]
[422823375,1779475742000,338.1,7.787e-05,2]
[422823378,1779475743000,338.1,8.566e-05,2]
[422823377,1779475743000,338.1,8.306e-05,2]
[422823402,1779475834000,-220.37,9.359e-05,2]
[422823409,1779475834000,-300.0,9.704e-05,2]
[422823404,1779475834000,-300.0,9.703e-05,2]
[422823401,1779475834000,-338.1,9.344e-05,2]
[422823407,1779475834000,-300.0,9.704e-05,2]
[422823410,1779475834000,-250.0,9.708e-05,2]
[422823406,1779475834000,-300.0,9.704e-05,2]
[422823400,1779475834000,-290.0,9.101e-05,2]
[422823403,1779475834000,-338.1,9.604e-05,2]
[422823397,1779475834000,-150.0,9.013e-05,2]
[422823395,1779475834000,-250.0,8.887e-05,2]
[422823396,1779475834000,-150.0,8.924e-05,2]
[422823394,1779475834000,-500.0,8.836e-05,2]
[422823393,1779475834000,-331.59834712,8.836e-05,2]
[422823398,1779475834000,-58.37125288,9.085e-05,2]
[422823391,1779475834000,-338.1,8.825e-05,2]
[422823392,1779475834000,-250.0,8.831e-05,2]
[422823408,1779475834000,-1200.0,9.704e-05,2]
[422823399,1779475834000,-279.72874712,9.085e-05,2]
[422823412,1779475834000,-208.7374384,9.743e-05,2]
[422823405,1779475834000,-1200.0,9.703e-05,2]
[422823411,1779475834000,-642.59283263,9.72e-05,2]
[422823423,1779475834000,-167.52,0.00010107,2]
[422823442,1779475834000,-455.34,0.00010641,2]
[422823441,1779475834000,-790.16,0.00010396,2]
[422823438,1779475834000,-808.58,0.00010264,2]
[422823437,1779475834000,-200.0,0.00010245,2]
[422823434,1779475834000,-2000.0,0.00010196,2]
[422823428,1779475834000,-1746.76413265,0.00010186,2]
[422823427,1779475834000,-827.73,0.00010181,2]
[422823421,1779475834000,-242.5,0.00010089,2]
[422823439,1779475834000,-9799.0,0.00010327,2]
[422823415,1779475834000,-1869.78,9.96e-05,2]
[422823418,1779475834000,-150.0,0.00010051,2]
[422823419,1779475834000,-10384.0,0.00010052,2]
[422823417,1779475834000,-1742.73,9.994e-05,2]
[422823414,1779475834000,-338.1,9.863e-05,2]
[422823425,1779475834000,-210.9,0.00010135,2]
[422823413,1779475834000,-160.0,9.743e-05,2]
[422823440,1779475834000,-1665.0,0.00010347,2]
[422823416,1779475834000,-166.68068915,9.971e-05,2]
[422823426,1779475834000,-790.16,0.00010142,2]
[422823463,1779475835000,-49339.0698,0.000116,2]
[422823457,1779475835000,-242.5,0.0001135,2]
[422823464,1779475835000,-33202.0309,0.000117,2]
[422823465,1779475835000,-198.60049428,0.000117,2]
[422823467,1779475835000,-2700.0,0.000117,4]
[422823477,1779475835000,-500.0,0.00011753,2]
[422823468,1779475835000,-9370.4277199,0.000117,2]
[422823478,1779475835000,-500.0,0.00011753,2]
[422823480,1779475835000,-500.0,0.00011754,2]
[422823469,1779475835000,-475.95623922,0.00011715,2]
[422823470,1779475835000,-587.0,0.00011742,2]
[422823472,1779475835000,-2351.0,0.00011742,2]
[422823456,1779475835000,-150.0,0.00011216,2]
[422823479,1779475835000,-281.92351174,0.00011753,2]
[422823460,1779475835000,-1962.0641716,0.00011492,2]
[422823445,1779475835000,-300.0,0.00010674,2]
[422823459,1779475835000,-2000.0,0.0001147,2]
[422823443,1779475835000,-790.16,0.0001065,2]
[422823449,1779475835000,-500.0,0.00010893,2]
[422823451,1779475835000,-790.16,0.00010903,2]
[422823446,1779475835000,-420.0,0.00010674,2]
[422823450,1779475835000,-929.1,0.00010893,2]
[422823444,1779475835000,-670.0,0.00010673,2]
[422823447,1779475835000,-420.0,0.00010674,2]
[422823473,1779475835000,-500.0,0.00011753,2]
[422823448,1779475835000,-1680.0,0.00010674,2]
[422823452,1779475835000,-150.0,0.00010959,2]
[422823454,1779475835000,-790.16,0.00011157,2]
[422823453,1779475835000,-255.0,0.00011056,2]
[422823458,1779475835000,-500.0,0.00011441,2]
[422823462,1779475835000,-500.0,0.00011562,2]
[422823455,1779475835000,-500.0,0.00011167,2]
[422823461,1779475835000,-166.66,0.00011495,2]
[422823474,1779475835000,-500.0,0.00011753,2]
[422823485,1779475835000,-500.0,0.00011754,2]
[422823471,1779475835000,-180.0,0.00011742,2]
[422823496,1779475835000,-444.27034042,0.00011754,2]
[422823498,1779475835000,-500.0,0.00011754,2]
[422823494,1779475835000,-500.0,0.00011754,2]
[422823497,1779475835000,-500.0,0.00011754,2]
[422823500,1779475835000,-485.50023289,0.0001179,2]
[422823503,1779475835000,-223.04685141,0.00011799,2]
[422823466,1779475835000,-210.2983101,0.000117,2]
[422823502,1779475835000,-276.95314859,0.00011799,2]
[422823507,1779475835000,-296.88994288,0.00011799,2]
[422823511,1779475835000,-500.0,0.00011799,2]
[422823508,1779475835000,-500.0,0.00011799,2]
[422823509,1779475835000,-361.03660772,0.00011799,2]
[422823510,1779475835000,-500.0,0.00011799,2]
[422823512,1779475835000,-275.67977124,0.00011799,2]
[422823504,1779475835000,-373.84309147,0.00011799,2]
[422823501,1779475835000,-151.0,0.00011797,2]
[422823499,1779475835000,-156.0,0.00011754,2]